[Event "Titled Tuesday Blitz March 08 Early 2022"]
[White "Bettalli, Francesco"]
[Black "San, Thit Lwin"]
[WhiteFideId "2816453"]
[BlackFideId "13001272"]
[WhiteElo "2216"]
[BlackElo "2232"]
[Result "1-0"]
[Round "02"]
[TimeControl "180+1"]
[Date "2022.03.09"]
[WhiteClock "0:00:12"]
[BlackClock "0:00:13"]

1. d4 {[%clk 0:03:00]}  Nf6 {[%clk 0:03:00]} 2. Nc3 {[%clk 0:03:01]}  d5 {[%clk 0:03:00]} 3. Bf4 {[%clk 0:03:01]}  Bf5 {[%clk 0:03:00]} 4. e3 {[%clk 0:03:00]}  e6 {[%clk 0:03:00]} 5. f3 {[%clk 0:03:01]}  Bb4 {[%clk 0:03:00]} 6. Ne2 {[%clk 0:03:00]}  O-O {[%clk 0:03:00]} 7. g4 {[%clk 0:03:00]}  Bg6 {[%clk 0:02:58]} 8. h4 {[%clk 0:03:00]}  h5 {[%clk 0:02:48]} 9. Ng3 {[%clk 0:02:49]}  c5 {[%clk 0:02:40]} 10. Bg5 {[%clk 0:02:44]}  cxd4 {[%clk 0:02:25]} 11. exd4 {[%clk 0:02:40]}  Qc7 {[%clk 0:02:21]} 12. Kf2 {[%clk 0:02:34]}  Nbd7 {[%clk 0:02:12]} 13. Nce2 {[%clk 0:02:14]}  hxg4 {[%clk 0:02:08]} 14. Nf4 {[%clk 0:01:52]}  Qxc2+ {[%clk 0:01:54]} 15. Qxc2 {[%clk 0:01:50]}  Bxc2 {[%clk 0:01:54]} 16. Bd3 {[%clk 0:01:47]}  Rac8 {[%clk 0:01:50]} 17. Rac1 {[%clk 0:01:36]}  Bxd3 {[%clk 0:01:41]} 18. Nxd3 {[%clk 0:01:37]}  Bd6 {[%clk 0:01:41]} 19. fxg4 {[%clk 0:01:31]}  Nxg4+ {[%clk 0:01:35]} 20. Kf3 {[%clk 0:01:30]}  Ngf6 {[%clk 0:01:26]} 21. Rhg1 {[%clk 0:01:26]}  Bxg3 {[%clk 0:01:20]} 22. Kxg3 {[%clk 0:01:24]}  Ne4+ {[%clk 0:01:18]} 23. Kf3 {[%clk 0:01:24]}  f6 {[%clk 0:01:12]} 24. Be3 {[%clk 0:01:21]}  Kf7 {[%clk 0:01:12]} 25. h5 {[%clk 0:01:20]}  Rh8 {[%clk 0:01:08]} 26. Nf4 {[%clk 0:01:11]}  Nb6 {[%clk 0:00:48]} 27. b3 {[%clk 0:00:45]}  Rxc1 {[%clk 0:00:42]} 28. Rxc1 {[%clk 0:00:43]}  Rc8 {[%clk 0:00:42]} 29. Rh1 {[%clk 0:00:37]}  Rc2 {[%clk 0:00:40]} 30. h6 {[%clk 0:00:36]}  gxh6 {[%clk 0:00:39]} 31. Rxh6 {[%clk 0:00:36]}  e5 {[%clk 0:00:37]} 32. dxe5 {[%clk 0:00:28]}  fxe5 {[%clk 0:00:33]} 33. Bxb6 {[%clk 0:00:28]}  axb6 {[%clk 0:00:33]} 34. Nxd5 {[%clk 0:00:28]}  Rxa2 {[%clk 0:00:30]} 35. Kxe4 {[%clk 0:00:27]}  Rb2 {[%clk 0:00:28]} 36. Rxb6 {[%clk 0:00:27]}  Re2+ {[%clk 0:00:26]} 37. Ne3 {[%clk 0:00:27]}  Ke7 {[%clk 0:00:23]} 38. b4 {[%clk 0:00:25]}  Kd7 {[%clk 0:00:23]} 39. Rxb7+ {[%clk 0:00:26]}  Kc6 {[%clk 0:00:23]} 40. Re7 {[%clk 0:00:26]}  Rb2 {[%clk 0:00:21]} 41. Re6+ {[%clk 0:00:25]}  Kd7 {[%clk 0:00:20]} 42. Rb6 {[%clk 0:00:23]}  Kc7 {[%clk 0:00:20]} 43. Nd5+ {[%clk 0:00:20]}  Kd7 {[%clk 0:00:20]} 44. Kxe5 {[%clk 0:00:20]}  Re2+ {[%clk 0:00:19]} 45. Kd4 {[%clk 0:00:20]}  Rd2+ {[%clk 0:00:19]} 46. Kc4 {[%clk 0:00:21]}  Rd1 {[%clk 0:00:17]} 47. b5 {[%clk 0:00:16]}  Kc8 {[%clk 0:00:17]} 48. Rh6 {[%clk 0:00:14]}  Kb8 {[%clk 0:00:16]} 49. Kc5 {[%clk 0:00:14]}  Kc8 {[%clk 0:00:14]} 50. Rh8+ {[%clk 0:00:13]}  Kb7 {[%clk 0:00:14]} 51. Rh7+ {[%clk 0:00:13]}  Kb8 {[%clk 0:00:15]} 52. Nb4 {[%clk 0:00:13]}  Rc1+ {[%clk 0:00:14]} 53. Kb6 {[%clk 0:00:13]}  Kc8 {[%clk 0:00:14]} 54. Nc6 {[%clk 0:00:13]}  Rxc6+ {[%clk 0:00:13]} 55. bxc6 {[%clk 0:00:12]}  Kb8 {[%clk 0:00:13]} 56. Rh8# {[%clk 0:00:12]} 1-0


[Site "https://www.chess.com"]

[Event "Titled Tuesday Blitz March 08 Early 2022"]
[White "Brodowski, Piotr"]
[Black "Safarli, Eltaj"]
[WhiteFideId "1124480"]
[BlackFideId "13402129"]
[WhiteElo "2422"]
[BlackElo "2634"]
[Result "0-1"]
[Round "02"]
[TimeControl "180+1"]
[Date "2022.03.08"]
[WhiteClock "0:00:03"]
[BlackClock "0:01:13"]

1. c4 {[%clk 0:03:00]}  Nf6 {[%clk 0:02:58]} 2. Nc3 {[%clk 0:02:58]}  c5 {[%clk 0:02:56]} 3. g3 {[%clk 0:02:57]}  e6 {[%clk 0:02:55]} 4. Bg2 {[%clk 0:02:55]}  Nc6 {[%clk 0:02:56]} 5. d3 {[%clk 0:02:52]}  d5 {[%clk 0:02:56]} 6. cxd5 {[%clk 0:02:52]}  exd5 {[%clk 0:02:55]} 7. Bg5 {[%clk 0:02:47]}  d4 {[%clk 0:02:55]} 8. Ne4 {[%clk 0:02:47]}  Be7 {[%clk 0:02:52]} 9. Bxf6 {[%clk 0:02:42]}  Bxf6 {[%clk 0:02:53]} 10. a3 {[%clk 0:02:36]}  Be7 {[%clk 0:02:46]} 11. Rc1 {[%clk 0:02:32]}  Qb6 {[%clk 0:02:39]} 12. Qc2 {[%clk 0:02:31]}  O-O {[%clk 0:02:37]} 13. Nf3 {[%clk 0:02:26]}  Be6 {[%clk 0:02:32]} 14. Nxc5 {[%clk 0:02:18]}  Bxc5 {[%clk 0:02:33]} 15. Qxc5 {[%clk 0:02:18]}  Qxb2 {[%clk 0:02:33]} 16. O-O {[%clk 0:01:28]}  Rad8 {[%clk 0:02:21]} 17. Rb1 {[%clk 0:01:17]}  Qxe2 {[%clk 0:02:19]} 18. Rxb7 {[%clk 0:01:01]}  Bd5 {[%clk 0:02:18]} 19. Nxd4 {[%clk 0:00:44]}  Nxd4 {[%clk 0:02:05]} 20. Bxd5 {[%clk 0:00:43]}  Qe5 {[%clk 0:01:36]} 21. Bxf7+ {[%clk 0:00:15]}  Rxf7 {[%clk 0:01:34]} 22. Qxe5 {[%clk 0:00:10]}  Nf3+ {[%clk 0:01:31]} 23. Kg2 {[%clk 0:00:11]}  Nxe5 {[%clk 0:01:32]} 24. Rxf7 {[%clk 0:00:11]}  Kxf7 {[%clk 0:01:32]} 25. Rb1 {[%clk 0:00:12]}  Rxd3 {[%clk 0:01:31]} 26. f4 {[%clk 0:00:12]}  Rd2+ {[%clk 0:01:27]} 27. Kh3 {[%clk 0:00:11]}  Nf3 {[%clk 0:01:26]} 28. Rb7+ {[%clk 0:00:11]}  Kf6 {[%clk 0:01:26]} 29. Rxa7 {[%clk 0:00:11]}  h5 {[%clk 0:01:24]} 30. Ra6+ {[%clk 0:00:11]}  Kf7 {[%clk 0:01:21]} 31. Ra7+ {[%clk 0:00:11]}  Kg6 {[%clk 0:01:21]} 32. Ra6+ {[%clk 0:00:12]}  Kh7 {[%clk 0:01:21]} 33. g4 {[%clk 0:00:13]}  Rxh2+ {[%clk 0:01:15]} 34. Kg3 {[%clk 0:00:13]}  hxg4 {[%clk 0:01:16]} 35. Kxg4 {[%clk 0:00:13]}  Nd4 {[%clk 0:01:16]} 36. a4 {[%clk 0:00:11]}  Rg2+ {[%clk 0:01:16]} 37. Kh3 {[%clk 0:00:10]}  Ra2 {[%clk 0:01:17]} 38. Kg3 {[%clk 0:00:08]}  g6 {[%clk 0:01:16]} 39. Kg4 {[%clk 0:00:08]}  Kh6 {[%clk 0:01:15]} 40. a5 {[%clk 0:00:08]}  Ra3 {[%clk 0:01:14]} 41. Rd6 {[%clk 0:00:08]}  Nf5 {[%clk 0:01:14]} 42. Rd3 {[%clk 0:00:02]}  Rxd3 {[%clk 0:01:13]} 43. a6 {[%clk 0:00:03]} 0-1


[Site "https://www.chess.com"]

[Event "Titled Tuesday Blitz March 08 Early 2022"]
[White "Buscar, Michael"]
[Black "Revita, Samantha Glo"]
[WhiteFideId "2603616"]
[BlackFideId "5205085"]
[WhiteElo "2010"]
[BlackElo "1741"]
[Result "1-0"]
[Round "02"]
[TimeControl "180+1"]
[Date "2022.03.09"]
[WhiteClock "0:00:04"]
[BlackClock "0:00:09"]

1. c4 {[%clk 0:02:42]}  e5 {[%clk 0:02:58]} 2. Nf3 {[%clk 0:02:37]}  Nc6 {[%clk 0:02:58]} 3. Nc3 {[%clk 0:02:37]}  f5 {[%clk 0:02:57]} 4. e3 {[%clk 0:02:34]}  Nf6 {[%clk 0:02:55]} 5. Nd5 {[%clk 0:02:31]}  e4 {[%clk 0:02:49]} 6. Ng1 {[%clk 0:02:22]}  Nxd5 {[%clk 0:02:35]} 7. cxd5 {[%clk 0:02:21]}  Nb4 {[%clk 0:02:36]} 8. Qb3 {[%clk 0:02:19]}  a5 {[%clk 0:02:29]} 9. a3 {[%clk 0:02:13]}  a4 {[%clk 0:02:21]} 10. Qc4 {[%clk 0:02:06]}  b5 {[%clk 0:02:20]} 11. Qc3 {[%clk 0:02:06]}  Nxd5 {[%clk 0:02:18]} 12. Qe5+ {[%clk 0:02:07]}  Ne7 {[%clk 0:02:16]} 13. Bxb5 {[%clk 0:02:07]}  Ba6 {[%clk 0:02:10]} 14. Bxa4 {[%clk 0:02:01]}  c6 {[%clk 0:02:02]} 15. Ne2 {[%clk 0:01:53]}  Bxe2 {[%clk 0:02:00]} 16. Bxc6 {[%clk 0:01:51]}  dxc6 {[%clk 0:01:58]} 17. Kxe2 {[%clk 0:01:52]}  Qd3+ {[%clk 0:01:58]} 18. Ke1 {[%clk 0:01:52]}  Rd8 {[%clk 0:01:53]} 19. a4 {[%clk 0:01:49]}  Qd5 {[%clk 0:01:53]} 20. Qc3 {[%clk 0:01:45]}  Nc8 {[%clk 0:01:46]} 21. a5 {[%clk 0:01:43]}  Na7 {[%clk 0:01:36]} 22. a6 {[%clk 0:01:43]}  Rd7 {[%clk 0:01:34]} 23. Ra5 {[%clk 0:01:43]}  Nb5 {[%clk 0:01:30]} 24. Qc2 {[%clk 0:01:21]}  Bb4 {[%clk 0:01:29]} 25. Ra4 {[%clk 0:01:15]}  Bc5 {[%clk 0:01:23]} 26. h4 {[%clk 0:01:08]}  O-O {[%clk 0:01:23]} 27. h5 {[%clk 0:01:09]}  h6 {[%clk 0:01:22]} 28. Rh3 {[%clk 0:01:09]}  Rfd8 {[%clk 0:01:12]} 29. Rg3 {[%clk 0:01:08]}  Bd6 {[%clk 0:01:12]} 30. Rg6 {[%clk 0:01:06]}  Kh7 {[%clk 0:00:56]} 31. b3 {[%clk 0:01:02]}  Qd3 {[%clk 0:00:49]} 32. Qxc6 {[%clk 0:00:55]}  Rc7 {[%clk 0:00:46]} 33. Bb2 {[%clk 0:00:42]}  Be5 {[%clk 0:00:34]} 34. Rxh6+ {[%clk 0:00:35]}  Kg8 {[%clk 0:00:18]} 35. Qe6+ {[%clk 0:00:32]}  Rf7 {[%clk 0:00:18]} 36. Rd4 {[%clk 0:00:21]}  Bxd4 {[%clk 0:00:16]} 37. Bxd4 {[%clk 0:00:17]}  Nxd4 {[%clk 0:00:16]} 38. exd4 {[%clk 0:00:10]}  Qxd4 {[%clk 0:00:16]} 39. g3 {[%clk 0:00:09]}  Qxd2+ {[%clk 0:00:15]} 40. Kf1 {[%clk 0:00:10]}  Qd1+ {[%clk 0:00:15]} 41. Kg2 {[%clk 0:00:10]}  Qf3+ {[%clk 0:00:15]} 42. Kh3 {[%clk 0:00:11]}  Qg4+ {[%clk 0:00:15]} 43. Kg2 {[%clk 0:00:11]}  gxh6 {[%clk 0:00:15]} 44. a7 {[%clk 0:00:10]}  Qf3+ {[%clk 0:00:14]} 45. Kh3 {[%clk 0:00:10]}  Rd1 {[%clk 0:00:15]} 46. Qg6+ {[%clk 0:00:09]}  Rg7 {[%clk 0:00:14]} 47. a8=Q+ {[%clk 0:00:04]}  Rd8 {[%clk 0:00:09]} 48. Qxd8# {[%clk 0:00:04]} 1-0


[Site "https://www.chess.com"]

[Event "Titled Tuesday Blitz March 08 Early 2022"]
[White "Corrales Jimenez, Fidel"]
[Black "Pein, Jonathan"]
[WhiteFideId "3506690"]
[BlackFideId "417092"]
[WhiteElo "2541"]
[BlackElo "2140"]
[Result "1-0"]
[Round "02"]
[TimeControl "180+1"]
[Date "2022.03.09"]
[WhiteClock "0:00:40"]
[BlackClock "0:00:02"]

1. e4 {[%clk 0:03:00]}  e5 {[%clk 0:02:57]} 2. Nf3 {[%clk 0:02:58]}  d6 {[%clk 0:02:54]} 3. d4 {[%clk 0:02:52]}  exd4 {[%clk 0:02:55]} 4. Nxd4 {[%clk 0:02:53]}  Nf6 {[%clk 0:02:54]} 5. Nc3 {[%clk 0:02:52]}  g6 {[%clk 0:02:55]} 6. g3 {[%clk 0:02:52]}  Bg7 {[%clk 0:02:55]} 7. Bg2 {[%clk 0:02:53]}  O-O {[%clk 0:02:55]} 8. O-O {[%clk 0:02:53]}  Nc6 {[%clk 0:02:56]} 9. Nde2 {[%clk 0:02:42]}  Re8 {[%clk 0:02:56]} 10. h3 {[%clk 0:02:42]}  Bd7 {[%clk 0:02:55]} 11. a4 {[%clk 0:02:42]}  a6 {[%clk 0:02:47]} 12. Kh2 {[%clk 0:02:34]}  Rb8 {[%clk 0:02:47]} 13. Be3 {[%clk 0:02:29]}  b5 {[%clk 0:02:45]} 14. axb5 {[%clk 0:02:28]}  axb5 {[%clk 0:02:46]} 15. f3 {[%clk 0:02:15]}  b4 {[%clk 0:02:42]} 16. Na4 {[%clk 0:02:05]}  d5 {[%clk 0:02:40]} 17. Nc5 {[%clk 0:01:55]}  dxe4 {[%clk 0:02:33]} 18. fxe4 {[%clk 0:01:55]}  Ne5 {[%clk 0:02:14]} 19. Nxd7 {[%clk 0:01:44]}  Nfxd7 {[%clk 0:02:05]} 20. b3 {[%clk 0:01:26]}  Nf6 {[%clk 0:02:05]} 21. Nf4 {[%clk 0:01:23]}  Qxd1 {[%clk 0:02:03]} 22. Raxd1 {[%clk 0:01:24]}  Nfg4+ {[%clk 0:02:02]} 23. hxg4 {[%clk 0:01:19]}  Nxg4+ {[%clk 0:02:03]} 24. Kh3 {[%clk 0:01:18]}  Nxe3 {[%clk 0:02:04]} 25. Rd7 {[%clk 0:01:18]}  Nxf1 {[%clk 0:02:01]} 26. Bxf1 {[%clk 0:01:19]}  Rxe4 {[%clk 0:01:58]} 27. Bc4 {[%clk 0:01:16]}  Rf8 {[%clk 0:01:49]} 28. Nd5 {[%clk 0:01:15]}  c5 {[%clk 0:01:41]} 29. Kg2 {[%clk 0:01:14]}  Bb2 {[%clk 0:00:57]} 30. Kf3 {[%clk 0:01:14]}  Re5 {[%clk 0:00:53]} 31. Rc7 {[%clk 0:01:14]}  Bd4 {[%clk 0:00:48]} 32. g4 {[%clk 0:01:12]}  Kg7 {[%clk 0:00:48]} 33. Nf4 {[%clk 0:01:10]}  Re3+ {[%clk 0:00:38]} 34. Kg2 {[%clk 0:01:08]}  Rc3 {[%clk 0:00:37]} 35. Ne6+ {[%clk 0:01:05]}  Kg8 {[%clk 0:00:37]} 36. Nxf8 {[%clk 0:01:06]}  Kxf8 {[%clk 0:00:38]} 37. Rxf7+ {[%clk 0:01:06]}  Ke8 {[%clk 0:00:39]} 38. Rxh7 {[%clk 0:01:06]}  Rxc2+ {[%clk 0:00:39]} 39. Kf3 {[%clk 0:01:06]}  g5 {[%clk 0:00:26]} 40. Ke4 {[%clk 0:01:07]}  Rf2 {[%clk 0:00:11]} 41. Kd5 {[%clk 0:01:05]}  Rf4 {[%clk 0:00:09]} 42. Kd6 {[%clk 0:01:05]}  Rf6+ {[%clk 0:00:09]} 43. Be6 {[%clk 0:01:06]}  Kf8 {[%clk 0:00:08]} 44. Kd7 {[%clk 0:01:04]}  Be5 {[%clk 0:00:03]} 45. Re7 {[%clk 0:00:58]}  Rf4 {[%clk 0:00:03]} 46. Re8+ {[%clk 0:00:56]}  Kg7 {[%clk 0:00:03]} 47. Rg8+ {[%clk 0:00:57]}  Kh7 {[%clk 0:00:02]} 48. Rc8 {[%clk 0:00:55]}  Bd4 {[%clk 0:00:02]} 49. Ke7 {[%clk 0:00:55]}  Re4 {[%clk 0:00:02]} 50. Kf7 {[%clk 0:00:41]}  Rf4+ {[%clk 0:00:02]} 51. Bf5+ {[%clk 0:00:41]}  Kh6 {[%clk 0:00:02]} 52. Rc6+ {[%clk 0:00:40]} 1-0


[Site "https://www.chess.com"]

[Event "Titled Tuesday Blitz March 08 Early 2022"]
[White "Costachi, Mihnea"]
[Black "Agasarov, Benik"]
[WhiteFideId "1217518"]
[BlackFideId "13314823"]
[WhiteElo "2464"]
[BlackElo "2564"]
[Result "1-0"]
[Round "02"]
[TimeControl "180+1"]
[Date "2022.03.09"]
[WhiteClock "0:00:29"]
[BlackClock "0:00:15"]

1. d4 {[%clk 0:03:00]}  d5 {[%clk 0:02:58]} 2. Bf4 {[%clk 0:02:59]}  Nf6 {[%clk 0:02:56]} 3. e3 {[%clk 0:02:59]}  e6 {[%clk 0:02:55]} 4. Nf3 {[%clk 0:03:00]}  Bd6 {[%clk 0:02:54]} 5. Bg3 {[%clk 0:03:00]}  c5 {[%clk 0:02:53]} 6. c3 {[%clk 0:03:00]}  Qc7 {[%clk 0:02:53]} 7. Nbd2 {[%clk 0:03:00]}  Nbd7 {[%clk 0:02:53]} 8. Bd3 {[%clk 0:02:59]}  b6 {[%clk 0:02:53]} 9. O-O {[%clk 0:02:57]}  Bb7 {[%clk 0:02:52]} 10. a4 {[%clk 0:02:57]}  a6 {[%clk 0:02:48]} 11. Qe2 {[%clk 0:02:57]}  e5 {[%clk 0:02:46]} 12. dxe5 {[%clk 0:02:56]}  Nxe5 {[%clk 0:02:44]} 13. Nxe5 {[%clk 0:02:56]}  Bxe5 {[%clk 0:02:42]} 14. e4 {[%clk 0:02:57]}  Bxg3 {[%clk 0:02:22]} 15. exd5+ {[%clk 0:02:55]}  Be5 {[%clk 0:02:18]} 16. Rfe1 {[%clk 0:02:46]}  O-O {[%clk 0:02:10]} 17. Qxe5 {[%clk 0:02:47]}  Qxe5 {[%clk 0:02:10]} 18. Rxe5 {[%clk 0:02:48]}  Bxd5 {[%clk 0:02:09]} 19. Rae1 {[%clk 0:02:38]}  Be6 {[%clk 0:01:56]} 20. Bc4 {[%clk 0:02:37]}  Bxc4 {[%clk 0:01:40]} 21. Nxc4 {[%clk 0:02:38]}  b5 {[%clk 0:01:39]} 22. axb5 {[%clk 0:02:35]}  axb5 {[%clk 0:01:39]} 23. Nd6 {[%clk 0:02:36]}  Ra2 {[%clk 0:01:34]} 24. Rxc5 {[%clk 0:02:37]}  Rxb2 {[%clk 0:01:34]} 25. Rxb5 {[%clk 0:02:35]}  Rxb5 {[%clk 0:01:32]} 26. Nxb5 {[%clk 0:02:35]}  h5 {[%clk 0:01:32]} 27. Re5 {[%clk 0:02:23]}  Rc8 {[%clk 0:01:31]} 28. f3 {[%clk 0:02:19]}  g6 {[%clk 0:01:30]} 29. Kf2 {[%clk 0:02:19]}  Kg7 {[%clk 0:01:28]} 30. Ke2 {[%clk 0:02:18]}  Nd7 {[%clk 0:01:28]} 31. Re3 {[%clk 0:02:14]}  Nb6 {[%clk 0:01:26]} 32. Nd6 {[%clk 0:02:09]}  Rc6 {[%clk 0:01:26]} 33. Rd3 {[%clk 0:02:09]}  Na4 {[%clk 0:01:23]} 34. c4 {[%clk 0:01:48]}  Nb2 {[%clk 0:01:19]} 35. Rd4 {[%clk 0:01:47]}  Kf6 {[%clk 0:01:14]} 36. Ne4+ {[%clk 0:01:22]}  Ke7 {[%clk 0:01:12]} 37. c5 {[%clk 0:01:21]}  f5 {[%clk 0:01:11]} 38. Rd6 {[%clk 0:01:05]}  Rxc5 {[%clk 0:01:03]} 39. Nxc5 {[%clk 0:00:51]}  Kxd6 {[%clk 0:01:03]} 40. Nb7+ {[%clk 0:00:51]}  Kc7 {[%clk 0:01:01]} 41. Na5 {[%clk 0:00:50]}  Kb6 {[%clk 0:00:55]} 42. Nb3 {[%clk 0:00:50]}  Nc4 {[%clk 0:00:55]} 43. Kd3 {[%clk 0:00:50]}  Nd6 {[%clk 0:00:50]} 44. Kd4 {[%clk 0:00:50]}  Kc6 {[%clk 0:00:48]} 45. Ke5 {[%clk 0:00:50]}  Ne8 {[%clk 0:00:46]} 46. Nd4+ {[%clk 0:00:47]}  Kd7 {[%clk 0:00:45]} 47. Kf4 {[%clk 0:00:42]}  Ke7 {[%clk 0:00:45]} 48. Kg5 {[%clk 0:00:43]}  Kf7 {[%clk 0:00:45]} 49. Nc6 {[%clk 0:00:44]}  h4 {[%clk 0:00:19]} 50. Ne5+ {[%clk 0:00:43]}  Kg7 {[%clk 0:00:19]} 51. Nxg6 {[%clk 0:00:40]}  h3 {[%clk 0:00:20]} 52. gxh3 {[%clk 0:00:41]}  Nd6 {[%clk 0:00:18]} 53. Ne7 {[%clk 0:00:42]}  Nf7+ {[%clk 0:00:14]} 54. Kxf5 {[%clk 0:00:41]}  Kh6 {[%clk 0:00:15]} 55. Kg4 {[%clk 0:00:36]}  Ne5+ {[%clk 0:00:15]} 56. Kg3 {[%clk 0:00:36]}  Kh5 {[%clk 0:00:13]} 57. Nd5 {[%clk 0:00:34]}  Nf7 {[%clk 0:00:11]} 58. f4 {[%clk 0:00:34]}  Nd6 {[%clk 0:00:11]} 59. Ne3 {[%clk 0:00:31]}  Ne4+ {[%clk 0:00:11]} 60. Kf3 {[%clk 0:00:31]}  Nd2+ {[%clk 0:00:11]} 61. Kg2 {[%clk 0:00:28]}  Ne4 {[%clk 0:00:10]} 62. Nf5 {[%clk 0:00:27]}  Nd2 {[%clk 0:00:08]} 63. Ng3+ {[%clk 0:00:27]}  Kh4 {[%clk 0:00:09]} 64. Nf5+ {[%clk 0:00:26]}  Kh5 {[%clk 0:00:09]} 65. Nd6 {[%clk 0:00:27]}  Nb1 {[%clk 0:00:06]} 66. Ne4 {[%clk 0:00:26]}  Na3 {[%clk 0:00:05]} 67. Kg3 {[%clk 0:00:26]}  Nc4 {[%clk 0:00:05]} 68. f5 {[%clk 0:00:26]}  Ne3 {[%clk 0:00:05]} 69. Kf4 {[%clk 0:00:26]}  Nxf5 {[%clk 0:00:05]} 70. Kxf5 {[%clk 0:00:25]}  Kh4 {[%clk 0:00:06]} 71. Nf2 {[%clk 0:00:25]}  Kh5 {[%clk 0:00:07]} 72. Kf4 {[%clk 0:00:25]}  Kh4 {[%clk 0:00:08]} 73. Kf3 {[%clk 0:00:26]}  Kh5 {[%clk 0:00:08]} 74. Kg3 {[%clk 0:00:27]}  Kg5 {[%clk 0:00:09]} 75. h4+ {[%clk 0:00:27]}  Kh5 {[%clk 0:00:10]} 76. Kh3 {[%clk 0:00:27]}  Kh6 {[%clk 0:00:11]} 77. Kg4 {[%clk 0:00:28]}  Kg6 {[%clk 0:00:11]} 78. h5+ {[%clk 0:00:29]}  Kh7 {[%clk 0:00:12]} 79. Kh4 {[%clk 0:00:29]}  Kh6 {[%clk 0:00:12]} 80. Ng4+ {[%clk 0:00:28]}  Kh7 {[%clk 0:00:13]} 81. Kg5 {[%clk 0:00:29]}  Kg7 {[%clk 0:00:14]} 82. h6+ {[%clk 0:00:30]}  Kh8 {[%clk 0:00:14]} 83. Kg6 {[%clk 0:00:30]}  Kg8 {[%clk 0:00:15]} 84. Ne5 {[%clk 0:00:28]}  Kh8 {[%clk 0:00:15]} 85. Nf7+ {[%clk 0:00:27]}  Kg8 {[%clk 0:00:15]} 86. h7+ {[%clk 0:00:28]}  Kf8 {[%clk 0:00:15]} 87. h8=Q+ {[%clk 0:00:29]} 1-0


[Site "https://www.chess.com"]

[Event "Titled Tuesday Blitz March 08 Early 2022"]
[White "Coto Mederos, Michel"]
[Black "Molina, Roberto Junio Brito"]
[WhiteFideId "3508528"]
[BlackFideId "2109450"]
[WhiteElo "2427"]
[BlackElo "2432"]
[Result "0-1"]
[Round "02"]
[TimeControl "180+1"]
[Date "2022.03.09"]
[WhiteClock "0:00:16"]
[BlackClock "0:00:19"]

1. c4 {[%clk 0:02:53]}  c6 {[%clk 0:02:59]} 2. Nf3 {[%clk 0:02:52]}  d5 {[%clk 0:02:59]} 3. d4 {[%clk 0:02:52]}  Nf6 {[%clk 0:02:58]} 4. Nc3 {[%clk 0:02:52]}  dxc4 {[%clk 0:02:58]} 5. a4 {[%clk 0:02:52]}  Bf5 {[%clk 0:02:56]} 6. e3 {[%clk 0:02:52]}  e6 {[%clk 0:02:56]} 7. Bxc4 {[%clk 0:02:52]}  Bb4 {[%clk 0:02:54]} 8. O-O {[%clk 0:02:51]}  O-O {[%clk 0:02:52]} 9. Nh4 {[%clk 0:02:51]}  Bg6 {[%clk 0:02:48]} 10. Nxg6 {[%clk 0:02:50]}  hxg6 {[%clk 0:02:49]} 11. Qe2 {[%clk 0:02:47]}  Nbd7 {[%clk 0:02:48]} 12. e4 {[%clk 0:02:42]}  e5 {[%clk 0:02:48]} 13. Rd1 {[%clk 0:02:39]}  exd4 {[%clk 0:02:46]} 14. Rxd4 {[%clk 0:02:37]}  Qe7 {[%clk 0:02:45]} 15. Bf4 {[%clk 0:02:08]}  Rfe8 {[%clk 0:02:39]} 16. Rad1 {[%clk 0:01:59]}  Bc5 {[%clk 0:02:28]} 17. Bd6 {[%clk 0:01:51]}  Bxd6 {[%clk 0:02:26]} 18. Rxd6 {[%clk 0:01:52]}  Ne5 {[%clk 0:02:23]} 19. Ba2 {[%clk 0:01:48]}  Rad8 {[%clk 0:02:15]} 20. Qd2 {[%clk 0:01:26]}  Rxd6 {[%clk 0:02:10]} 21. Qxd6 {[%clk 0:01:27]}  Qxd6 {[%clk 0:02:07]} 22. Rxd6 {[%clk 0:01:28]}  g5 {[%clk 0:02:06]} 23. f3 {[%clk 0:01:21]}  Kf8 {[%clk 0:02:05]} 24. Ne2 {[%clk 0:01:15]}  Ke7 {[%clk 0:02:05]} 25. Rd1 {[%clk 0:01:15]}  a5 {[%clk 0:02:00]} 26. Kf2 {[%clk 0:01:12]}  g6 {[%clk 0:01:56]} 27. Ke3 {[%clk 0:01:07]}  Rh8 {[%clk 0:01:54]} 28. h3 {[%clk 0:01:07]}  Nh5 {[%clk 0:01:49]} 29. Rd2 {[%clk 0:01:03]}  Rb8 {[%clk 0:01:44]} 30. g3 {[%clk 0:01:00]}  Nf6 {[%clk 0:01:29]} 31. f4 {[%clk 0:00:58]}  gxf4+ {[%clk 0:01:30]} 32. gxf4 {[%clk 0:00:58]}  Ned7 {[%clk 0:01:30]} 33. e5 {[%clk 0:00:57]}  Nh5 {[%clk 0:01:20]} 34. Nc3 {[%clk 0:00:31]}  Nc5 {[%clk 0:01:10]} 35. Kf3 {[%clk 0:00:18]}  Ng7 {[%clk 0:01:01]} 36. Ne4 {[%clk 0:00:17]}  Nxe4 {[%clk 0:00:59]} 37. Kxe4 {[%clk 0:00:18]}  Rh8 {[%clk 0:00:57]} 38. Rd3 {[%clk 0:00:18]}  Rb8 {[%clk 0:00:47]} 39. Rd2 {[%clk 0:00:17]}  b5 {[%clk 0:00:45]} 40. axb5 {[%clk 0:00:17]}  Rxb5 {[%clk 0:00:45]} 41. Rc2 {[%clk 0:00:17]}  Rb4+ {[%clk 0:00:44]} 42. Bc4 {[%clk 0:00:17]}  Ne6 {[%clk 0:00:36]} 43. b3 {[%clk 0:00:16]}  a4 {[%clk 0:00:35]} 44. Rb2 {[%clk 0:00:11]}  Nc5+ {[%clk 0:00:33]} 45. Ke3 {[%clk 0:00:11]}  axb3 {[%clk 0:00:28]} 46. Kd4 {[%clk 0:00:11]}  Ne6+ {[%clk 0:00:24]} 47. Kc3 {[%clk 0:00:12]}  Rb8 {[%clk 0:00:20]} 48. Bxe6 {[%clk 0:00:12]}  Kxe6 {[%clk 0:00:21]} 49. Rxb3 {[%clk 0:00:12]}  Rxb3+ {[%clk 0:00:19]} 50. Kxb3 {[%clk 0:00:13]}  Kf5 {[%clk 0:00:20]} 51. Kc4 {[%clk 0:00:12]}  Kxf4 {[%clk 0:00:20]} 52. Kd4 {[%clk 0:00:13]}  g5 {[%clk 0:00:18]} 53. Kc5 {[%clk 0:00:12]}  Kxe5 {[%clk 0:00:18]} 54. Kxc6 {[%clk 0:00:12]}  f5 {[%clk 0:00:18]} 55. Kc5 {[%clk 0:00:13]}  f4 {[%clk 0:00:18]} 56. Kc4 {[%clk 0:00:14]}  Ke4 {[%clk 0:00:19]} 57. Kc3 {[%clk 0:00:15]}  Ke3 {[%clk 0:00:19]} 58. Kc2 {[%clk 0:00:16]}  Ke2 {[%clk 0:00:19]} 0-1


[Site "https://www.chess.com"]

[Event "Titled Tuesday Blitz March 08 Early 2022"]
[White "Csonka, Balazs"]
[Black "Butti, Enrique"]
[WhiteFideId "742910"]
[BlackFideId "3700470"]
[WhiteElo "2404"]
[BlackElo "2080"]
[Result "1-0"]
[Round "02"]
[TimeControl "180+1"]
[Date "2022.03.09"]
[WhiteClock "0:00:50"]
[BlackClock "0:01:06"]

1. e4 {[%clk 0:03:00]}  c5 {[%clk 0:02:59]} 2. Nf3 {[%clk 0:02:59]}  d6 {[%clk 0:02:58]} 3. Bb5+ {[%clk 0:02:59]}  Bd7 {[%clk 0:02:57]} 4. a4 {[%clk 0:02:55]}  Nc6 {[%clk 0:02:56]} 5. O-O {[%clk 0:02:52]}  Nf6 {[%clk 0:02:55]} 6. Re1 {[%clk 0:02:51]}  e6 {[%clk 0:02:54]} 7. c3 {[%clk 0:02:50]}  Be7 {[%clk 0:02:53]} 8. d4 {[%clk 0:02:48]}  cxd4 {[%clk 0:02:52]} 9. cxd4 {[%clk 0:02:47]}  d5 {[%clk 0:02:52]} 10. e5 {[%clk 0:02:41]}  Ne4 {[%clk 0:02:51]} 11. Nc3 {[%clk 0:02:30]}  Nxc3 {[%clk 0:02:42]} 12. bxc3 {[%clk 0:02:31]}  O-O {[%clk 0:02:41]} 13. Bd3 {[%clk 0:02:29]}  f5 {[%clk 0:02:37]} 14. exf6 {[%clk 0:02:23]}  Bxf6 {[%clk 0:02:36]} 15. Ba3 {[%clk 0:02:17]}  Re8 {[%clk 0:02:34]} 16. Qb1 {[%clk 0:02:10]}  h6 {[%clk 0:02:19]} 17. Bh7+ {[%clk 0:02:04]}  Kh8 {[%clk 0:02:18]} 18. Bg6 {[%clk 0:02:02]}  Qc7 {[%clk 0:01:55]} 19. Bxe8 {[%clk 0:01:55]}  Rxe8 {[%clk 0:01:54]} 20. Qd3 {[%clk 0:01:39]}  Na5 {[%clk 0:01:45]} 21. Bb4 {[%clk 0:01:27]}  Nc4 {[%clk 0:01:44]} 22. a5 {[%clk 0:01:26]}  a6 {[%clk 0:01:43]} 23. Nd2 {[%clk 0:01:18]}  Bb5 {[%clk 0:01:35]} 24. Nxc4 {[%clk 0:01:17]}  Bxc4 {[%clk 0:01:34]} 25. Qg3 {[%clk 0:01:17]}  Qc6 {[%clk 0:01:25]} 26. Bd6 {[%clk 0:01:13]}  Bb5 {[%clk 0:01:19]} 27. Be5 {[%clk 0:01:13]}  Rf8 {[%clk 0:01:17]} 28. h4 {[%clk 0:01:05]}  Qc4 {[%clk 0:01:14]} 29. Re3 {[%clk 0:01:02]}  Qb3 {[%clk 0:01:07]} 30. Rae1 {[%clk 0:00:56]}  Qc2 {[%clk 0:01:06]} 31. Bxf6 {[%clk 0:00:50]} 1-0


[Site "https://www.chess.com"]